Workbook

Sheet germany_zip_code_2
B2: Choropleth Map - Germany by ZIP Codes ("PLZ 2") | J2: www.cs-analytics.de
C4: Value | G4: Colors
C12: =control!D14 -> 0% to 2%
C13: =control!D15 -> 2% to 4%
C14: =control!D16 -> 4% to 6%
C15: =control!D17 -> 6% to 8%
C16: =control!D18 -> 8% to 10%
C17: =control!D19 -> 10% to 12%
C18: =control!D20 -> 12% to 14%
C19: =control!D21 -> 14% to 16%
C20: =control!D22 -> 16% to 18%
C21: =control!D23 -> 18% or more

Sheet data
B2: Data | H2: Selection / Shape Definition
B4: The source data | H4: Calculation of selected data, shape name definition and shape index
B5: No. | C5: ZIP Code 2 | D5: Value 1 | E5: Value 2 | F5: Value 3 | H5: Selection | I5: Shape Names | J5: Shape Index
B6: 1 | C6: 01 | D6: 0.0913 | E6: 0.1387 | F6: 0.0751 | H6: =INDEX($D6:$F6,1,control!$C$8) -> 0.0913 | I6: S_01 | J6: 1
B7: =B6+1 -> 2 | C7: 02 | D7: 0.1761 | E7: 0.0903 | F7: 0.0219 | H7: =INDEX($D7:$F7,1,control!$C$8) -> 0.1761 | I7: S_02 | J7: 2
B8: =B7+1 -> 3 | C8: 03 | D8: 0.1077 | E8: 0.172 | F8: 0.1649 | H8: =INDEX($D8:$F8,1,control!$C$8) -> 0.1077 | I8: S_03 | J8: 3
B9: 4 | C9: 04 | D9: 0.0849 | E9: 0.1361 | F9: 0.0662 | H9: =INDEX($D9:$F9,1,control!$C$8) -> 0.0849 | I9: S_04 | J9: 4
B10: 5 | C10: 06 | D10: 0.1015 | E10: 0.208 | F10: 0.0779 | H10: =INDEX($D10:$F10,1,control!$C$8) -> 0.1015 | I10: S_06 | J10: 5
B11: 6 | C11: 07 | D11: 0.0883 | E11: 0.1878 | F11: 0.0709 | H11: =INDEX($D11:$F11,1,control!$C$8) -> 0.0883 | I11: S_07 | J11: 6
B12: 7 | C12: 08 | D12: 0.1806 | E12: 0.1623 | F12: 0.0322 | H12: =INDEX($D12:$F12,1,control!$C$8) -> 0.1806 | I12: S_08 | J12: 7
B13: 8 | C13: 09 | D13: 0.0304 | E13: 0.0945 | F13: 0.0498 | H13: =INDEX($D13:$F13,1,control!$C$8) -> 0.0304 | I13: S_09 | J13: 8
B14: 9 | C14: 10 | D14: 0.1449 | E14: 0.0464 | F14: 0.1063 | H14: =INDEX($D14:$F14,1,control!$C$8) -> 0.1449 | I14: S_10 | J14: 9
B15: 10 | C15: 12 | D15: 0.057 | E15: 0.1331 | F15: 0.0272 | H15: =INDEX($D15:$F15,1,control!$C$8) -> 0.057 | I15: S_12 | J15: 10
B16: 11 | C16: 13 | D16: 0.0505 | E16: 0.2017 | F16: 0.104 | H16: =INDEX($D16:$F16,1,control!$C$8) -> 0.0505 | I16: S_13 | J16: 11
B17: 12 | C17: 14 | D17: 0.0609 | E17: 0.2071 | F17: 0.1711 | H17: =INDEX($D17:$F17,1,control!$C$8) -> 0.0609 | I17: S_14 | J17: 12
B18: 13 | C18: 15 | D18: 0.0731 | E18: 0.0641 | F18: 0.0707 | H18: =INDEX($D18:$F18,1,control!$C$8) -> 0.0731 | I18: S_15 | J18: 13
B19: 14 | C19: 16 | D19: 0.094 | E19: 0.0577 | F19: 0.0889 | H19: =INDEX($D19:$F19,1,control!$C$8) -> 0.094 | I19: S_16 | J19: 14
B20: 15 | C20: 17 | D20: 0.1227 | E20: 0.0213 | F20: 0.1029 | H20: =INDEX($D20:$F20,1,control!$C$8) -> 0.1227 | I20: S_17 | J20: 15
B21: 16 | C21: 18 | D21: 0.1989 | E21: 0.1035 | F21: 0.1518 | H21: =INDEX($D21:$F21,1,control!$C$8) -> 0.1989 | I21: S_18 | J21: 16
B22: 17 | C22: 19 | D22: 0.0299 | E22: 0.1513 | F22: 0.1375 | H22: =INDEX($D22:$F22,1,control!$C$8) -> 0.0299 | I22: S_19 | J22: 17
B23: 18 | C23: 20 | D23: 0.1211 | E23: 0.1025 | F23: 0.1062 | H23: =INDEX($D23:$F23,1,control!$C$8) -> 0.1211 | I23: S_20 | J23: 18
B24: 19 | C24: 21 | D24: 0.1805 | E24: 0.1766 | F24: 0.172 | H24: =INDEX($D24:$F24,1,control!$C$8) -> 0.1805 | I24: S_21 | J24: 19
B25: 20 | C25: 22 | D25: 0.0616 | E25: 0.1865 | F25: 0.0241 | H25: =INDEX($D25:$F25,1,control!$C$8) -> 0.0616 | I25: S_22 | J25: 20
B26: 21 | C26: 23 | D26: 0.0207 | E26: 0.2036 | F26: 0.1581 | H26: =INDEX($D26:$F26,1,control!$C$8) -> 0.0207 | I26: S_23 | J26: 21
B27: 22 | C27: 24 | D27: 0.1225 | E27: 0.1017 | F27: 0.1561 | H27: =INDEX($D27:$F27,1,control!$C$8) -> 0.1225 | I27: S_24 | J27: 22
B28: 23 | C28: 25 | D28: 0.0306 | E28: 0.1861 | F28: 0.1687 | H28: =INDEX($D28:$F28,1,control!$C$8) -> 0.0306 | I28: S_25 | J28: 23
B29: 24 | C29: 26 | D29: 0.1761 | E29: 0.0867 | F29: 0.148 | H29: =INDEX($D29:$F29,1,control!$C$8) -> 0.1761 | I29: S_26 | J29: 24
B30: 25 | C30: 27 | D30: 0.1957 | E30: 0.1188 | F30: 0.0805 | H30: =INDEX($D30:$F30,1,control!$C$8) -> 0.1957 | I30: S_27 | J30: 25
B31: 26 | C31: 28 | D31: 0.1509 | E31: 0.032 | F31: 0.1978 | H31: =INDEX($D31:$F31,1,control!$C$8) -> 0.1509 | I31: S_28 | J31: 26
B32: 27 | C32: 29 | D32: 0.1007 | E32: 0.1475 | F32: 0.1539 | H32: =INDEX($D32:$F32,1,control!$C$8) -> 0.1007 | I32: S_29 | J32: 27
B33: 28 | C33: 30 | D33: 0.1774 | E33: 0.1073 | F33: 0.1655 | H33: =INDEX($D33:$F33,1,control!$C$8) -> 0.1774 | I33: S_30 | J33: 28
B34: 29 | C34: 31 | D34: 0.1332 | E34: 0.1376 | F34: 0.1192 | H34: =INDEX($D34:$F34,1,control!$C$8) -> 0.1332 | I34: S_31 | J34: 29
B35: 30 | C35: 32 | D35: 0.0354 | E35: 0.0919 | F35: 0.1146 | H35: =INDEX($D35:$F35,1,control!$C$8) -> 0.0354 | I35: S_32 | J35: 30
B36: 31 | C36: 33 | D36: 0.0219 | E36: 0.1544 | F36: 0.116 | H36: =INDEX($D36:$F36,1,control!$C$8) -> 0.0219 | I36: S_33 | J36: 31
B37: 32 | C37: 34 | D37: 0.053 | E37: 0.1792 | F37: 0.0989 | H37: =INDEX($D37:$F37,1,control!$C$8) -> 0.053 | I37: S_34 | J37: 32
B38: 33 | C38: 35 | D38: 0.111 | E38: 0.1188 | F38: 0.1347 | H38: =INDEX($D38:$F38,1,control!$C$8) -> 0.111 | I38: S_35 | J38: 33
B39: 34 | C39: 36 | D39: 0.209 | E39: 0.0476 | F39: 0.1411 | H39: =INDEX($D39:$F39,1,control!$C$8) -> 0.209 | I39: S_36 | J39: 34
B40: 35 | C40: 37 | D40: 0.1695 | E40: 0.0607 | F40: 0.1948 | H40: =INDEX($D40:$F40,1,control!$C$8) -> 0.1695 | I40: S_37 | J40: 35
B41: 36 | C41: 38 | D41: 0.185 | E41: 0.2056 | F41: 0.1394 | H41: =INDEX($D41:$F41,1,control!$C$8) -> 0.185 | I41: S_38 | J41: 36
B42: 37 | C42: 39 | D42: 0.045 | E42: 0.096 | F42: 0.1112 | H42: =INDEX($D42:$F42,1,control!$C$8) -> 0.045 | I42: S_39 | J42: 37
B43: 38 | C43: 40 | D43: 0.1408 | E43: 0.1321 | F43: 0.1138 | H43: =INDEX($D43:$F43,1,control!$C$8) -> 0.1408 | I43: S_40 | J43: 38
B44: 39 | C44: 41 | D44: 0.0708 | E44: 0.1142 | F44: 0.169 | H44: =INDEX($D44:$F44,1,control!$C$8) -> 0.0708 | I44: S_41 | J44: 39
B45: 40 | C45: 42 | D45: 0.0222 | E45: 0.0461 | F45: 0.1488 | H45: =INDEX($D45:$F45,1,control!$C$8) -> 0.0222 | I45: S_42 | J45: 40
B46: 41 | C46: 44 | D46: 0.1573 | E46: 0.0289 | F46: 0.0618 | H46: =INDEX($D46:$F46,1,control!$C$8) -> 0.1573 | I46: S_44 | J46: 41
B47: 42 | C47: 45 | D47: 0.1218 | E47: 0.1667 | F47: 0.1364 | H47: =INDEX($D47:$F47,1,control!$C$8) -> 0.1218 | I47: S_45 | J47: 42
B48: 43 | C48: 46 | D48: 0.0839 | E48: 0.0435 | F48: 0.1584 | H48: =INDEX($D48:$F48,1,control!$C$8) -> 0.0839 | I48: S_46 | J48: 43
B49: 44 | C49: 47 | D49: 0.113 | E49: 0.0912 | F49: 0.0397 | H49: =INDEX($D49:$F49,1,control!$C$8) -> 0.113 | I49: S_47 | J49: 44
B50: 45 | C50: 48 | D50: 0.1746 | E50: 0.115 | F50: 0.052 | H50: =INDEX($D50:$F50,1,control!$C$8) -> 0.1746 | I50: S_48 | J50: 45
B51: 46 | C51: 49 | D51: 0.0629 | E51: 0.1004 | F51: 0.0979 | H51: =INDEX($D51:$F51,1,control!$C$8) -> 0.0629 | I51: S_49 | J51: 46
B52: 47 | C52: 50 | D52: 0.0534 | E52: 0.1222 | F52: 0.0458 | H52: =INDEX($D52:$F52,1,control!$C$8) -> 0.0534 | I52: S_50 | J52: 47
B53: 48 | C53: 51 | D53: 0.1272 | E53: 0.0968 | F53: 0.192 | H53: =INDEX($D53:$F53,1,control!$C$8) -> 0.1272 | I53: S_51 | J53: 48
B54: 49 | C54: 52 | D54: 0.0301 | E54: 0.1589 | F54: 0.1566 | H54: =INDEX($D54:$F54,1,control!$C$8) -> 0.0301 | I54: S_52 | J54: 49
B55: 50 | C55: 53 | D55: 0.0304 | E55: 0.0732 | F55: 0.1926 | H55: =INDEX($D55:$F55,1,control!$C$8) -> 0.0304 | I55: S_53 | J55: 50
B56: 51 | C56: 54 | D56: 0.1131 | E56: 0.0867 | F56: 0.0211 | H56: =INDEX($D56:$F56,1,control!$C$8) -> 0.1131 | I56: S_54 | J56: 51
B57: 52 | C57: 55 | D57: 0.0386 | E57: 0.168 | F57: 0.1954 | H57: =INDEX($D57:$F57,1,control!$C$8) -> 0.0386 | I57: S_55 | J57: 52
B58: 53 | C58: 56 | D58: 0.1848 | E58: 0.1425 | F58: 0.1395 | H58: =INDEX($D58:$F58,1,control!$C$8) -> 0.1848 | I58: S_56 | J58: 53
B59: 54 | C59: 57 | D59: 0.1152 | E59: 0.0787 | F59: 0.1087 | H59: =INDEX($D59:$F59,1,control!$C$8) -> 0.1152 | I59: S_57 | J59: 54
B60: 55 | C60: 58 | D60: 0.0222 | E60: 0.0492 | F60: 0.0939 | H60: =INDEX($D60:$F60,1,control!$C$8) -> 0.0222 | I60: S_58 | J60: 55
B61: 56 | C61: 59 | D61: 0.0693 | E61: 0.1112 | F61: 0.0993 | H61: =INDEX($D61:$F61,1,control!$C$8) -> 0.0693 | I61: S_59 | J61: 56
B62: 57 | C62: 60 | D62: 0.0599 | E62: 0.0824 | F62: 0.1565 | H62: =INDEX($D62:$F62,1,control!$C$8) -> 0.0599 | I62: S_60 | J62: 57
B63: 58 | C63: 61 | D63: 0.1237 | E63: 0.0688 | F63: 0.0744 | H63: =INDEX($D63:$F63,1,control!$C$8) -> 0.1237 | I63: S_61 | J63: 58
B64: 59 | C64: 63 | D64: 0.0681 | E64: 0.1384 | F64: 0.1112 | H64: =INDEX($D64:$F64,1,control!$C$8) -> 0.0681 | I64: S_63 | J64: 59
B65: 60 | C65: 64 | D65: 0.0805 | E65: 0.074 | F65: 0.1297 | H65: =INDEX($D65:$F65,1,control!$C$8) -> 0.0805 | I65: S_64 | J65: 60
B66: 61 | C66: 65 | D66: 0.0623 | E66: 0.0408 | F66: 0.1493 | H66: =INDEX($D66:$F66,1,control!$C$8) -> 0.0623 | I66: S_65 | J66: 61
B67: 62 | C67: 66 | D67: 0.1501 | E67: 0.1114 | F67: 0.0803 | H67: =INDEX($D67:$F67,1,control!$C$8) -> 0.1501 | I67: S_66 | J67: 62
B68: 63 | C68: 67 | D68: 0.07 | E68: 0.1215 | F68: 0.1647 | H68: =INDEX($D68:$F68,1,control!$C$8) -> 0.07 | I68: S_67 | J68: 63
B69: 64 | C69: 68 | D69: 0.0621 | E69: 0.0314 | F69: 0.063 | H69: =INDEX($D69:$F69,1,control!$C$8) -> 0.0621 | I69: S_68 | J69: 64
B70: 65 | C70: 69 | D70: 0.0937 | E70: 0.1006 | F70: 0.0934 | H70: =INDEX($D70:$F70,1,control!$C$8) -> 0.0937 | I70: S_69 | J70: 65
B71: 66 | C71: 70 | D71: 0.0951 | E71: 0.1246 | F71: 0.0983 | H71: =INDEX($D71:$F71,1,control!$C$8) -> 0.0951 | I71: S_70 | J71: 66
B72: 67 | C72: 71 | D72: 0.1748 | E72: 0.0662 | F72: 0.0812 | H72: =INDEX($D72:$F72,1,control!$C$8) -> 0.1748 | I72: S_71 | J72: 67
B73: 68 | C73: 72 | D73: 0.127 | E73: 0.1396 | F73: 0.0287 | H73: =INDEX($D73:$F73,1,control!$C$8) -> 0.127 | I73: S_72 | J73: 68
B74: 69 | C74: 73 | D74: 0.0864 | E74: 0.1065 | F74: 0.0665 | H74: =INDEX($D74:$F74,1,control!$C$8) -> 0.0864 | I74: S_73 | J74: 69
B75: 70 | C75: 74 | D75: 0.0623 | E75: 0.0902 | F75: 0.1838 | H75: =INDEX($D75:$F75,1,control!$C$8) -> 0.0623 | I75: S_74 | J75: 70
B76: 71 | C76: 75 | D76: 0.1036 | E76: 0.1627 | F76: 0.1562 | H76: =INDEX($D76:$F76,1,control!$C$8) -> 0.1036 | I76: S_75 | J76: 71
B77: 72 | C77: 76 | D77: 0.1389 | E77: 0.0478 | F77: 0.1303 | H77: =INDEX($D77:$F77,1,control!$C$8) -> 0.1389 | I77: S_76 | J77: 72
B78: 73 | C78: 77 | D78: 0.1479 | E78: 0.1517 | F78: 0.1615 | H78: =INDEX($D78:$F78,1,control!$C$8) -> 0.1479 | I78: S_77 | J78: 73
B79: 74 | C79: 78 | D79: 0.0724 | E79: 0.1455 | F79: 0.0486 | H79: =INDEX($D79:$F79,1,control!$C$8) -> 0.0724 | I79: S_78 | J79: 74
B80: 75 | C80: 79 | D80: 0.048 | E80: 0.1695 | F80: 0.177 | H80: =INDEX($D80:$F80,1,control!$C$8) -> 0.048 | I80: S_79 | J80: 75
B81: 76 | C81: 80 | D81: 0.1295 | E81: 0.0621 | F81: 0.1632 | H81: =INDEX($D81:$F81,1,control!$C$8) -> 0.1295 | I81: S_80 | J81: 76
B82: 77 | C82: 81 | D82: 0.1185 | E82: 0.0336 | F82: 0.1635 | H82: =INDEX($D82:$F82,1,control!$C$8) -> 0.1185 | I82: S_81 | J82: 77
B83: 78 | C83: 82 | D83: 0.1111 | E83: 0.1296 | F83: 0.1374 | H83: =INDEX($D83:$F83,1,control!$C$8) -> 0.1111 | I83: S_82 | J83: 78
B84: 79 | C84: 83 | D84: 0.058 | E84: 0.15 | F84: 0.0865 | H84: =INDEX($D84:$F84,1,control!$C$8) -> 0.058 | I84: S_83 | J84: 79
B85: 80 | C85: 84 | D85: 0.1408 | E85: 0.1229 | F85: 0.0544 | H85: =INDEX($D85:$F85,1,control!$C$8) -> 0.1408 | I85: S_84 | J85: 80
B86: 81 | C86: 85 | D86: 0.0288 | E86: 0.1738 | F86: 0.1223 | H86: =INDEX($D86:$F86,1,control!$C$8) -> 0.0288 | I86: S_85 | J86: 81
B87: 82 | C87: 86 | D87: 0.138 | E87: 0.1807 | F87: 0.1135 | H87: =INDEX($D87:$F87,1,control!$C$8) -> 0.138 | I87: S_86 | J87: 82
B88: 83 | C88: 87 | D88: 0.1372 | E88: 0.1801 | F88: 0.1276 | H88: =INDEX($D88:$F88,1,control!$C$8) -> 0.1372 | I88: S_87 | J88: 83
B89: 84 | C89: 88 | D89: 0.1547 | E89: 0.0903 | F89: 0.1018 | H89: =INDEX($D89:$F89,1,control!$C$8) -> 0.1547 | I89: S_88 | J89: 84
B90: 85 | C90: 89 | D90: 0.0743 | E90: 0.1174 | F90: 0.1836 | H90: =INDEX($D90:$F90,1,control!$C$8) -> 0.0743 | I90: S_89 | J90: 85
B91: 86 | C91: 90 | D91: 0.088 | E91: 0.091 | F91: 0.0236 | H91: =INDEX($D91:$F91,1,control!$C$8) -> 0.088 | I91: S_90 | J91: 86
B92: 87 | C92: 91 | D92: 0.106 | E92: 0.0654 | F92: 0.0377 | H92: =INDEX($D92:$F92,1,control!$C$8) -> 0.106 | I92: S_91 | J92: 87
B93: 88 | C93: 92 | D93: 0.021 | E93: 0.1267 | F93: 0.1884 | H93: =INDEX($D93:$F93,1,control!$C$8) -> 0.021 | I93: S_92 | J93: 88
B94: 89 | C94: 93 | D94: 0.0487 | E94: 0.06 | F94: 0.0604 | H94: =INDEX($D94:$F94,1,control!$C$8) -> 0.0487 | I94: S_93 | J94: 89
B95: 90 | C95: 94 | D95: 0.1004 | E95: 0.0215 | F95: 0.1527 | H95: =INDEX($D95:$F95,1,control!$C$8) -> 0.1004 | I95: S_94 | J95: 90
B96: 91 | C96: 95 | D96: 0.1104 | E96: 0.1135 | F96: 0.062 | H96: =INDEX($D96:$F96,1,control!$C$8) -> 0.1104 | I96: S_95 | J96: 91
B97: 92 | C97: 96 | D97: 0.1034 | E97: 0.1357 | F97: 0.1789 | H97: =INDEX($D97:$F97,1,control!$C$8) -> 0.1034 | I97: S_96 | J97: 92
B98: 93 | C98: 97 | D98: 0.102 | E98: 0.0416 | F98: 0.0495 | H98: =INDEX($D98:$F98,1,control!$C$8) -> 0.102 | I98: S_97 | J98: 93
B99: 94 | C99: 98 | D99: 0.0885 | E99: 0.0724 | F99: 0.1612 | H99: =INDEX($D99:$F99,1,control!$C$8) -> 0.0885 | I99: S_98 | J99: 94
B100: 95 | C100: 99 | D100: 0.1871 | E100: 0.056 | F100: 0.064 | H100: =INDEX($D100:$F100,1,control!$C$8) -> 0.1871 | I100: S_99 | J100: 95

Sheet control
B2: Control
B4: Metrics | C4: =data!$D$5 -> Value 1
C5: =data!$E$5 -> Value 2 | F5: Select a color scale here
C6: =data!$F$5 -> Value 3
F7: Recreate the shape index after you inserted a new map or added new shapes
B8: Selection | C8: 1
F12: 1 | G12: =F12+1 -> 2 | H12: =G12+1 -> 3 | I12: 4 | J12: 5 | K12: 6 | L12: 7 | M12: 8 | N12: 9 | O12: 10 | P12: 11 | Q12: 12 | R12: 13 | S12: 14 | T12: 15 | U12: 16 | V12: 17 | W12: 18 | X12: 19 | Y12: 20 | Z12: 21 | AA12: 22 | AB12: =AA12+1 -> 23
B13: Threshold | C13: RGB | D13: Legend | F13: =$C$26 -> Green Yellow Red | G13: =$C$27 -> Green to Pink | H13: =$C$28 -> Green to Purple | I13: =$C$29 -> Green to Brown | J13: =$C$30 -> Blue to Red | K13: =$C$31 -> Blue to Red Brown | L13: =$C$32 -> Brown to Purple | M13: =$C$33 -> Brown Blue Green | N13: =$C$34 -> Purple to Green | O13: =$C$35 -> Pink to Green | P13: =$C$36 -> Red to Blue | Q13: =$C$37 -> Red to Black | R13: =$C$38 -> Red Yellow Blue | S13: =$C$39 -> Spectral | T13: =$C$40 -> Red Yellow Green | U13: =$C$41 -> Light | V13: =$C$42 -> Pairwise | W13: =$C$43 -> Light to Dark Blue | X13: =$C$44 -> Light to Dark Red | Y13: =$C$45 -> Light to Dark Brown | Z13: =$C$46 -> Light to Dark Green | AA13: =$C$47 -> Light to Dark Yellow | AB13: =$C$48 -> Light Grey to Black
B14: 0.02 | C14: 3631104 | D14: ="0% to "&TEXT(B14,"0%") -> 0% to 2%
B15: 0.04 | C15: 5281818 | D15: =TEXT(B14,"0%")&" to "&TEXT(B15,"0%") -> 2% to 4%
B16: 0.06 | C16: 6536550 | D16: =TEXT(B15,"0%")&" to "&TEXT(B16,"0%") -> 4% to 6%
B17: 0.08 | C17: 7002534 | D17: 6% to 8%
B18: 0.1 | C18: 9170905 | D18: 8% to 10%
B19: 0.12 | C19: 9167102 | D19: 10% to 12%
B20: 0.14 | C20: 6401789 | D20: 12% to 14%
B21: 0.16 | C21: 4419060 | D21: 14% to 16%
B22: 0.18 | C22: 2568407 | D22: 16% to 18%
B23: 1 | C23: 2490533 | D23: =TEXT(B22,"0%")&" or more" -> 18% or more
F24: =IF(F$12=myColorScaleSelection,"▲","") -> ▲
F25: =IF(F$12=myColorScaleSelection,"Current Selection","") -> Current Selection
B26: Color Scales | C26: Green Yellow Red
C27: Green to Pink
C28: Green to Purple
C29: Green to Brown
C30: Blue to Red
C31: Blue to Red Brown
C32: Brown to Purple
C33: Brown Blue Green
C34: Purple to Green
C35: Pink to Green
C36: Red to Blue
C37: Red to Black
C38: Red Yellow Blue
C39: Spectral
C40: Red Yellow Green
C41: Light
C42: Pairwise
C43: Light to Dark Blue
C44: Light to Dark Red
C45: Light to Dark Brown
C46: Light to Dark Green
C47: Light to Dark Yellow
C48: Light Grey to Black
B50: Selection | C50: 1
B52: Show Status Bar | C52: FALSE
